[Event "MCCT Oslo Esports Cup 2022"]
[Site "Oslo"]
[Date "2022.04.20"]
[Round "6.6"]
[White "Mamedyarov, Shakhriyar"]
[Black "Van Foreest, Jorden"]
[Result "1-0"]
[ECO "D75"]
[WhiteElo "2771"]
[BlackElo "2714"]
[Annotator "TA"]
[PlyCount "153"]
[EventDate "2022.04.14"]
[EventType "tourn"]
[EventCountry "NOR"]
[SourceTitle "playchess.com"]
[Source "ChessBase"]
[SourceQuality "1"]
[TimeControl "300+3"]

{[%evp 17,153,4,20,14,50,66,50,33,56,51,79,75,108,108,114,104,153,45,32,46,42,40,300,289,256,115,113,111,104,104,118,118,118,109,112,91,91,90,97,97,112,112,112,112,112,112,112,100,112,112,112,112,112,94,112,93,115,112,116,110,111,94,110,87,87,86,111,111,111,111,111,110,110,110,110,110,110,110,110,110,110,110,110,110,110,110,110,106,106,106,106,106,106,106,150,150,150,150,29956,12797,29963,29961,29965,29966,29967,29968,29968,29969,29967,29968,29966,29968,29969,29970,29970,29967,29972,29973,29973,29974,29974,29975,29975,29976,29976,29977,29978,29979,29979,29980,29980,29979,29980,0,29980,29981,29988,29989]} 1. d4 {[%emt 0:00:00]} Nf6 {[%emt 0:00:00]} 2. c4 {[%emt 0:00:01]} g6 {[%emt 0:00:01]} 3. Nc3 {[%emt 0:00:00]} Bg7 {[%emt 0:00:02]} 4. g3 {[%emt 0:00:00]} d5 {[%emt 0:00:05]} 5. cxd5 {[%emt 0:00:02]} Nxd5 {[%emt 0:00:01]} 6. Bg2 {[%emt 0:00:00]} Nxc3 {[%emt 0:00:01]} 7. bxc3 {[%emt 0:00:00]} c5 {[%emt 0:00:04]} 8. Nf3 {[%emt 0:00:02]} Nc6 {[%emt 0:00:16]} 9. O-O $1 {[%emt 0:00:04][%mdl 4] is currently scoring better than 9.e3.} O-O {[%emt 0:00:07][%cal Rc5d4]} 10. d5 {[%emt 0:00:02] D75: Fianchetto Grünfeld: Main Line with 7...c5.} Ne5 {[%emt 0:00:21]} 11. Nxe5 {[%emt 0:00:02]} Bxe5 {[%emt 0:00:00] [#]} 12. Qc2 $146 {[%emt 0:00:01] White is slightly better.} ({Predecessor:} 12. Bh6 Bg7 13. Bxg7 Kxg7 14. Qb3 Qd6 15. Rad1 Rb8 16. e4 e5 17. dxe6 Qxe6 18. Qa3 {1-0 (39) Mekhitarian,K (2487)-Fusco,L (2383) Santos 2011}) 12... Bg7 {[%emt 0:00:30]} 13. Rb1 {[%emt 0:00:07]} a6 {[%emt 0:01:38]} 14. c4 {[%emt 0:00:09]} b5 {[%emt 0:00:00]} 15. cxb5 {[%emt 0:00:32]} axb5 {[%emt 0:00:01]} 16. Rxb5 {[%emt 0:00:01]} ({Much less strong is} 16. Qxc5 Rxa2 17. e4 Bd7 $14) 16... c4 {[%emt 0:00:01]} ({Better is} 16... Bd4) 17. Rc5 {[%emt 0:00:04]} ({Resist} 17. Qxc4 $6 Ba6 $16) ({White should play} 17. Bd2 $1 $16) 17... c3 $14 {[%emt 0:00:07]} 18. Rxc3 {[%emt 0:00:15]} Bxc3 {[%emt 0:00:01]} 19. Qxc3 {[%emt 0:00:00] aiming for Bh6.} Rxa2 $2 {[%emt 0:00:52][%mdl 8192]} (19... Qa5 $14 20. Qd4 Rd8) 20. Bh6 $18 {[%emt 0:00:10][%csl Gh6][%cal Rc3g7] This bishop pair is nice.} f6 {[%emt 0:00:00][%cal Oa2e2]} 21. d6 {[%emt 0:00:39]} (21. Qc4 $18 {is the precise move to win.} Ra7 22. d6+ (22. Bxf8 Kxf8 23. e4 Qc7 $16) 22... e6 23. Bxf8 Qxf8 24. Qc5) 21... Be6 $16 {[%emt 0:00:02][%cal Od8d6]} 22. Bxf8 {[%emt 0:00:12] White is much more active.} Kxf8 {[%emt 0:00:11]} 23. dxe7+ {[%emt 0:00:17]} Qxe7 {[%emt 0:00:00]} 24. Rb1 {[%emt 0:00:02]} Ra7 {[%emt 0:00:17] Prevents Rb7.} 25. h4 {[%emt 0:00:10]} Kg7 {[%emt 0:00:04]} 26. e3 {[%emt 0:00:04]} Rc7 {[%emt 0:00:01]} 27. Qa5 {[%emt 0:00:09]} Ra7 {[%emt 0:00:02]} 28. Qb6 {[%emt 0:00:01]} Bf5 {[%emt 0:00:01]} 29. Rc1 {[%emt 0:00:03]} Be6 {[%emt 0:00:10]} 30. Bf3 {[%emt 0:00:08]} Bf7 {[%emt 0:00:02]} 31. Kg2 {[%emt 0:00:02]} Rd7 {[%emt 0:00:16]} 32. Rc6 {[%emt 0:00:03]} Qe5 {[%emt 0:00:07]} 33. Rc5 {[%emt 0:00:07]} Qd6 {[%emt 0:00:02]} 34. Qa5 {[%emt 0:00:05]} h5 {[%emt 0:00:05]} 35. Qc3 {[%emt 0:00:03]} Re7 {[%emt 0:00:02]} 36. e4 {[%emt 0:00:14]} Re5 {[%emt 0:00:08]} 37. Rc6 {[%emt 0:00:03]} Qd8 {[%emt 0:00:05]} 38. Kh2 {[%emt 0:00:03]} Qa5 {[%emt 0:00:03]} 39. Qc1 {[%emt 0:00:12]} Qa7 {[%emt 0:00:09]} 40. Rc2 {[%emt 0:00:06]} Ra5 {[%emt 0:00:02]} 41. Qd2 {[%emt 0:00:30]} Ra2 {[%emt 0:00:03]} 42. Rxa2 {[%emt 0:00:01]} Qxa2 {[%emt 0:00:01]} 43. Qxa2 {[%emt 0:00:03]} Bxa2 {[%emt 0:00:00][%mdl 4096] Endgame KB-KB} 44. Bg2 {[%emt 0:00:07]} Kf7 {[%emt 0:00:02]} 45. f4 {[%emt 0:00:01]} Ke7 {[%emt 0:00:02]} 46. Kg1 {[%emt 0:00:01]} Kd6 {[%emt 0:00:01]} 47. Kf2 {[%emt 0:00:01]} Ke7 {[%emt 0:00:26]} 48. Ke3 {[%emt 0:00:01]} Bf7 {[%emt 0:00:05]} 49. Kd4 {[%emt 0:00:01]} Be8 {[%emt 0:00:12]} 50. Bf1 {[%emt 0:00:01]} Bc6 {[%emt 0:00:03]} 51. Bd3 {[%emt 0:00:09]} Bd7 {[%emt 0:00:06]} 52. e5 {[%emt 0:00:05]} Be8 {[%emt 0:00:08]} 53. Bc4 {[%emt 0:00:06]} Bd7 {[%emt 0:00:01]} 54. Kc5 {[%emt 0:00:12]} Bf5 {[%emt 0:00:05]} 55. Bb5 {[%emt 0:00:05]} Ke6 {[%emt 0:00:06] [#]} 56. Kd4 $1 {[%emt 0:00:03] Intending Bc4+ and mate.} Bg4 {[%emt 0:00:24]} 57. Bd3 {[%emt 0:00:05]} Kf7 {[%emt 0:00:02] [#]} (57... f5 $16 58. Bc4+ Ke7) 58. Kd5 $1 {[%emt 0:00:01] White threatens Kd6 and mate.} Ke7 {[%emt 0:00:09]} 59. Bxg6 {[%emt 0:00:02]} Bf3+ {[%emt 0:00:01]} 60. Kd4 {[%emt 0:00:05]} Bg4 {[%emt 0:00:02]} 61. Bd3 {[%emt 0:00:12]} Ke6 {[%emt 0:00:04]} 62. Bc4+ {[%emt 0:00:00]} Ke7 {[%emt 0:00:00]} 63. Ke3 {[%emt 0:00:02]} Bf5 {[%emt 0:00:01]} 64. Be2 {[%emt 0:00:01]} Bg6 {[%emt 0:00:00]} 65. g4 {[%emt 0:00:15]} hxg4 {[%emt 0:00:02]} 66. Bxg4 {[%emt 0:00:00]} fxe5 {[%emt 0:00:00]} 67. fxe5 {[%emt 0:00:01]} Kf7 {[%emt 0:00:05]} 68. Kf4 {[%emt 0:00:02]} Kg7 {[%emt 0:00:00]} 69. Kg5 {[%emt 0:00:03]} Bf7 {[%emt 0:00:01]} 70. h5 {[%emt 0:00:02][%cal Bh4h5,Bh5h6][%mdl 32]} Bb3 {[%emt 0:00:02]} 71. h6+ {[%emt 0:00:02]} Kh7 {[%emt 0:00:01]} 72. Bf5+ {[%emt 0:00:01]} Kh8 {[%emt 0:00:01]} 73. Kf6 {[%emt 0:00:00]} Bc4 {[%emt 0:00:02]} 74. Be6 {[%emt 0:00:01]} Be2 {[%emt 0:00:10]} 75. Bf5 {[%emt 0:00:07]} Bc4 {[%emt 0:00:01]} 76. Bg6 {[%emt 0:00:00]} Kg8 {[%emt 0:00:11] [#]} 77. Bf7+ $1 {[%emt 0:00:02][%mdl 512] Weighted Error Value: White=0.11 (very precise) /Black=0.42} 1-0

[Event "MCCT Oslo Esports Cup 2022"]
[Site "Oslo"]
[Date "2022.04.20"]
[Round "7.1"]
[White "Mamedyarov, Shakhriyar"]
[Black "Carlsen, Magnus"]
[Result "1/2-1/2"]
[ECO "E60"]
[WhiteElo "2771"]
[BlackElo "2864"]
[Annotator "TA"]
[PlyCount "97"]
[EventDate "2022.04.14"]
[EventType "tourn"]
[EventCountry "NOR"]
[SourceTitle "playchess.com"]
[Source "ChessBase"]
[SourceQuality "1"]
[TimeControl "900+10"]

{[%evp 9,97,23,22,6,18,7,5,16,18,8,15,10,21,16,27,32,21,10,15,0,8,4,62,58,60,50,54,0,18,21,24,27,64,61,65,59,66,57,58,41,41,0,41,26,41,41,41,41,39,5,13,0,0,0,0,0,0,0,49,47,47,0,0,0,0,0,0,0,0,0,0,0,0,0,0,0,0,0,0,0,0,0,0,0,0,0,0,0,0,0]} 1. d4 {[%emt 0:00:00]} Nf6 {[%emt 0:00:00]} 2. c4 {[%emt 0:00:03]} g6 {[%emt 0:00:04]} 3. Nf3 {[%emt 0:00:17]} Bg7 {[%emt 0:00:29]} 4. e3 {[%emt 0:00:00]} (4. Nc3 d6 5. g3 O-O 6. Bg2 Nc6 7. O-O e5 8. h3 Re8 9. d5 Nb8 10. e4 a5 11. Be3 Na6 12. a3 Nc5 13. Nd2 a4 14. Bxc5 dxc5 15. Nxa4 Qe7 16. b3 Bd7 17. Nb2 Ra6 {½-½ (69) Mamedyarov,S (2762)-Carlsen,M (2855) Struga 2021}) 4... O-O {[%emt 0:00:03]} 5. Be2 {[%emt 0:00:03]} c5 {[%emt 0:00:09]} 6. dxc5 {[%emt 0:00:01] E60: King's Indian: Unusual lines and Fianchetto Variation without Nc3.} Na6 {[%emt 0:00:02][%cal Bb8a6,Ba6c5,Bc5e4][%mdl 32]} 7. O-O {[%emt 0:00:03]} Nxc5 {[%emt 0:00:03]} 8. b4 $1 {[%emt 0:00:01][%mdl 4] is more profitable than 8.Nc3 at the moment.} Nce4 {[%emt 0:00:05]} 9. Bb2 {[%emt 0:00:04]} b6 {[%emt 0:00:19]} 10. Nbd2 {[%emt 0:00:05]} Bb7 {[%emt 0:00:28]} 11. Nxe4 {[%emt 0:00:08] [#]} Nxe4 $146 {[%emt 0:00:26]} ({Predecessor:} 11... Bxe4 12. Rc1 Qc7 13. Nd4 Rac8 14. Nb5 Qb7 15. f3 Bc6 16. Nd4 d6 17. Nxc6 Qxc6 {0-1 (43) Betaneli,A (2204)-Li,R (2564) Saint Louis 2017}) 12. Bxg7 {[%emt 0:00:03]} Kxg7 {[%emt 0:00:00]} 13. Qd4+ {[%emt 0:00:10]} Nf6 {[%emt 0:00:03]} 14. Rfd1 {[%emt 0:01:54]} Qc7 {[%emt 0:00:41]} 15. Ne5 {[%emt 0:01:15]} Rfd8 {[%emt 0:04:37]} (15... h5 $11) 16. Ng4 $1 $14 {[%emt 0:00:22] White is more active.} a5 {[%emt 0:00:45]} 17. Nxf6 {[%emt 0:00:49]} exf6 {[%emt 0:00:03]} 18. Qd6 {[%emt 0:00:03]} (18. a3 $1 $14) 18... Qxd6 {[%emt 0:00:48]} 19. Rxd6 {[%emt 0:00:03] [#] Black must now prevent b5.} axb4 {[%emt 0:00:01]} 20. Rxb6 {[%emt 0:00:02]} Bc6 {[%emt 0:00:00]} 21. Rxb4 {[%emt 0:00:07]} Ra5 {[%emt 0:00:01]} 22. Bd1 {[%emt 0:01:15]} Rda8 {[%emt 0:00:04]} 23. a4 {[%emt 0:01:11]} Kf8 {[%emt 0:00:03]} 24. f3 {[%emt 0:00:18]} Ke7 {[%emt 0:00:03]} 25. Bb3 {[%emt 0:01:09]} h5 {[%emt 0:01:03]} 26. Kf2 {[%emt 0:00:52]} Rc5 {[%emt 0:00:41]} 27. e4 {[%emt 0:00:56]} f5 {[%emt 0:00:20]} 28. exf5 {[%emt 0:00:24]} Rxf5 {[%emt 0:00:02]} 29. Rd1 {[%emt 0:01:04]} Rfa5 {[%emt 0:00:47]} 30. Rb5 {[%emt 0:00:46]} Bxb5 {[%emt 0:00:20]} (30... R5a7 {is more complex.} 31. Re5+ Kf6 32. Rc5 Ke6) 31. cxb5 {[%emt 0:00:00]} Rxa4 {[%emt 0:00:01]} 32. Bxa4 {[%emt 0:00:02]} Rxa4 $11 {[%emt 0:00:01][%mdl 4096] Endgame KR-KR} 33. Rb1 {[%emt 0:00:01] Prevents Rb4.} Kd8 {[%emt 0:01:52]} (33... Kd6 $11) 34. b6 $1 $14 {[%emt 0:00:18] [#] b7 would kill now.} Kc8 {[%emt 0:00:14]} 35. Rc1+ {[%emt 0:00:10]} (35. b7+ $14 {deserves consideration.} Kb8 36. Rd1) 35... Kb7 $11 {[%emt 0:00:15] The position is equal.} 36. Rc7+ {[%emt 0:00:03]} Kxb6 {[%emt 0:00:01]} 37. Rxd7 {[%emt 0:00:00]} Rf4 {[%emt 0:00:13]} 38. Kg3 {[%emt 0:01:05]} Rf5 {[%emt 0:00:05]} 39. Rd4 {[%emt 0:00:06]} Kc5 {[%emt 0:00:21]} 40. Rf4 {[%emt 0:00:11]} Rxf4 {[%emt 0:00:01]} 41. Kxf4 {[%emt 0:00:01] K3P-K3P} f6 {[%emt 0:00:02]} 42. g4 {[%emt 0:00:31]} hxg4 {[%emt 0:00:02]} 43. fxg4 {[%emt 0:00:00] KPP-KPP} Kd5 {[%emt 0:00:03]} 44. h4 {[%emt 0:00:02]} Ke6 {[%emt 0:00:01]} 45. h5 {[%emt 0:00:03]} gxh5 {[%emt 0:00:03]} 46. gxh5 {[%emt 0:00:00]} Kf7 {[%emt 0:00:02]} 47. Kf5 {[%emt 0:00:01]} Kg7 {[%emt 0:00:00]} 48. h6+ {[%emt 0:00:00]} Kxh6 {[%emt 0:00:00]} 49. Kxf6 {[%emt 0:00:01] Weighted Error Value: White=0.08 (flawless) /Black=0.08 (flawless)} 1/2-1/2

[Event "MCCT Oslo Esports Cup 2022"]
[Site "Oslo"]
[Date "2022.04.20"]
[Round "7.1"]
[White "Le, Quang Liem"]
[Black "Van Foreest, Jorden"]
[Result "1-0"]
[ECO "D18"]
[WhiteElo "2709"]
[BlackElo "2714"]
[Annotator "TA"]
[PlyCount "131"]
[EventDate "2022.04.14"]
[EventType "tourn"]
[EventCountry "NOR"]
[SourceTitle "playchess.com"]
[Source "ChessBase"]
[SourceQuality "1"]
[TimeControl "900+10"]

{[%evp 21,131,9,0,0,0,0,7,0,0,0,3,0,16,31,15,30,35,0,0,0,5,8,79,80,87,88,126,129,129,129,131,131,139,111,141,141,141,85,101,106,106,106,112,94,122,122,122,122,152,152,148,129,152,104,270,260,270,269,245,165,225,225,236,212,293,293,293,268,252,227,376,350,459,425,519,511,520,509,487,478,460,458,451,424,403,335,692,673,700,651,535,694,659,601,410,372,673,596,12833,12833,12829,12830,12834,12833,12836,12837,12841,12841,12841,12842,12843,12842]} 1. d4 {[%emt 0:00:00]} d5 {[%emt 0:00:00]} 2. c4 {[%emt 0:00:09]} c6 {[%emt 0:00:02]} 3. Nf3 {[%emt 0:00:05]} Nf6 {[%emt 0:00:02]} 4. Nc3 {[%emt 0:00:03]} dxc4 {[%emt 0:00:02]} 5. a4 {[%emt 0:00:04]} Bf5 {[%emt 0:00:02]} 6. e3 {[%emt 0:00:03]} e6 {[%emt 0:00:04]} 7. Bxc4 {[%emt 0:00:02]} Bb4 {[%emt 0:00:07]} 8. O-O {[%emt 0:00:03]} O-O {[%emt 0:00:03]} 9. Nh4 {[%emt 0:00:08]} Bg6 {[%emt 0:00:46]} 10. Nxg6 {[%emt 0:00:11]} hxg6 {[%emt 0:00:01]} 11. Qb3 {[%emt 0:01:47]} Qe7 {[%emt 0:00:06]} 12. e4 {[%emt 0:00:12] White wants to play Bg5. D18: Slav Defence: 5 a4 Bf5 6 e3.} Bxc3 {[%emt 0:04:22]} 13. bxc3 {[%emt 0:00:00] aiming for Ba3.} Nxe4 {[%emt 0:00:02]} 14. Re1 {[%emt 0:00:31] The position is equal.} Nd6 {[%emt 0:00:33]} (14... Qh4 $2 15. g3 Qg4 16. Qxb7 $18 (16. Ba3 Rd8 $16)) 15. Ba3 {[%emt 0:00:04]} Re8 {[%emt 0:00:01]} 16. Bd3 {[%emt 0:04:53] [#]} Qc7 $146 {[%emt 0:01:21] [#]} ({Predecessor:} 16... b6 17. c4 Nd7 18. d5 cxd5 19. cxd5 e5 20. Rac1 Nc5 21. Bxc5 bxc5 22. Rxc5 e4 23. Bb5 {½-½ (23) Rau,J (2315)-Calio,M (2330) ICCF email 2016}) 17. Bxg6 $1 {[%emt 0:01:48]} fxg6 {[%emt 0:01:31]} 18. Rxe6 {[%emt 0:00:03]} Qf7 {[%emt 0:02:00]} 19. Rae1 {[%emt 0:00:05] Intending Rxe8+ and mate.} (19. d5 $5 {[%cal Ra3d6]}) 19... Rxe6 {[%emt 0:00:42]} 20. Rxe6 {[%emt 0:00:06]} Nd7 {[%emt 0:01:46]} 21. Bxd6 {[%emt 0:00:03]} Nf8 {[%emt 0:00:05]} (21... Nf6 $11) 22. Bxf8 $16 {[%emt 0:00:11]} Re8 {[%emt 0:00:01] [#]} 23. d5 {[%emt 0:00:13]} Rxf8 {[%emt 0:00:00][%mdl 4096] Endgame KQR-KQR} (23... Kxf8 24. Qb4+) 24. f3 {[%emt 0:01:06] Active counter play!} cxd5 {[%emt 0:00:01]} 25. Qxd5 {[%emt 0:00:06]} Kh7 {[%emt 0:00:02]} 26. Qe4 {[%emt 0:00:43]} Qf5 {[%emt 0:00:07]} 27. Kf2 {[%emt 0:00:18]} Qxe4 {[%emt 0:00:40]} 28. Rxe4 {[%emt 0:00:00] KR-KR} Rc8 {[%emt 0:00:01]} 29. Rh4+ {[%emt 0:02:27]} Kg8 {[%emt 0:00:03]} 30. Rb4 {[%emt 0:00:00]} b6 {[%emt 0:00:16]} 31. Rb3 {[%emt 0:00:08]} Rc4 {[%emt 0:00:46]} 32. Ra3 {[%emt 0:00:02]} Kf7 {[%emt 0:00:03]} 33. Ke3 {[%emt 0:00:02]} Ke6 {[%emt 0:00:01]} 34. Kd3 {[%emt 0:00:04]} Kd5 {[%emt 0:00:07]} 35. Ra2 {[%emt 0:00:09]} g5 {[%emt 0:00:54]} 36. h3 {[%emt 0:00:08] Prevents g4.} g6 {[%emt 0:00:58]} 37. g3 {[%emt 0:01:27]} (37. a5 $142) 37... Rc6 {[%emt 0:01:06] This move loses the game for Black.} (37... Rc5 $16) 38. Rb2 $18 {[%emt 0:00:05]} a6 {[%emt 0:00:01] [#]} 39. Rb4 $1 {[%emt 0:00:06]} Rf6 {[%emt 0:00:01]} 40. Ke3 {[%emt 0:00:51]} Rc6 {[%emt 0:00:09]} (40... Kc5 $142 41. Rg4 Re6+ 42. Kd3 Rd6+ 43. Kc2 Rd5) 41. Rd4+ {[%emt 0:00:12]} Ke5 {[%emt 0:00:03] [#]} 42. Kd3 {[%emt 0:00:07]} Rf6 {[%emt 0:00:03]} 43. f4+ {[%emt 0:00:13]} gxf4 {[%emt 0:00:04]} 44. Re4+ {[%emt 0:00:01]} Kd5 {[%emt 0:00:01]} 45. Rxf4 {[%emt 0:00:01]} ({Less strong is} 45. gxf4 Rf5 $14) 45... Rc6 {[%emt 0:00:28]} (45... Re6 $142 46. h4 Rc6) 46. Rg4 {[%emt 0:00:02] And now Rg5+ would win.} Ke5 {[%emt 0:00:03]} 47. h4 {[%emt 0:00:16]} Rd6+ {[%emt 0:00:02]} 48. Ke3 {[%emt 0:00:06]} Rc6 {[%emt 0:00:01]} 49. c4 {[%emt 0:00:06]} Kf6 {[%emt 0:00:04]} 50. Rd4 {[%emt 0:01:13]} Ke6 {[%emt 0:01:34]} 51. Re4+ {[%emt 0:00:40]} Kf6 {[%emt 0:00:02]} 52. Kd4 {[%emt 0:00:08]} Rd6+ {[%emt 0:00:01]} 53. Kc3 {[%emt 0:00:01][%cal Oa4a5] Threatens to win with a5!} Kf5 $2 {[%emt 0:00:33]} (53... Rc6 54. Kd3 Rc5) 54. Rd4 {[%emt 0:00:26]} Re6 {[%emt 0:00:13]} 55. Kb4 {[%emt 0:00:45]} Re1 {[%emt 0:00:02]} 56. Rd5+ {[%emt 0:00:03]} Ke6 {[%emt 0:00:01]} 57. Rg5 {[%emt 0:00:05]} Rb1+ {[%emt 0:00:02]} 58. Kc3 {[%emt 0:00:01]} Kf6 $2 {[%emt 0:00:01]} (58... Kf7 59. a5 Rc1+ 60. Kd4 (60. Kb2 Rxc4 61. axb6 Rb4+ 62. Kc3 Rxb6 $11) 60... Rd1+ 61. Ke3 Re1+ 62. Kd2 Re6 63. axb6 Rxb6) 59. a5 {[%emt 0:00:01] White is clearly winning.} b5 {[%emt 0:01:24]} 60. cxb5 {[%emt 0:00:21]} axb5 {[%emt 0:00:00]} 61. Rg4 {[%emt 0:00:09]} Ra1 {[%emt 0:01:29]} 62. Rf4+ {[%emt 0:00:03]} Ke6 {[%emt 0:00:07]} 63. Kb4 {[%emt 0:00:00]} Kd6 {[%emt 0:00:17]} 64. Kxb5 {[%emt 0:00:13]} Rb1+ {[%emt 0:00:03]} 65. Rb4 {[%emt 0:00:02]} Rg1 {[%emt 0:00:12]} 66. Kb6 {[%emt 0:00:13] Weighted Error Value: White=0.07 (flawless) /Black=0.34} 1-0

[Event "MCCT Oslo Esports Cup 2022"]
[Site "Oslo"]
[Date "2022.04.20"]
[Round "7.1"]
[White "Praggnanandhaa R"]
[Black "Giri, Anish"]
[Result "0-1"]
[ECO "E94"]
[WhiteElo "2624"]
[BlackElo "2773"]
[Annotator "TA"]
[PlyCount "114"]
[EventDate "2022.04.14"]
[EventType "tourn"]
[EventCountry "NOR"]
[SourceTitle "playchess.com"]
[Source "ChessBase"]
[SourceQuality "1"]
[TimeControl "900+10"]

{[%evp 15,114,32,43,25,53,41,68,70,70,77,86,54,61,27,22,28,34,43,49,30,4,45,46,0,0,0,12,0,0,0,0,-79,54,-172,-161,-138,-32,-79,-33,-190,-178,-161,-90,-87,-81,-66,-85,-187,-175,-170,-175,-149,-142,-731,-727,-1093,-636,-581,-119,-1105,-1102,-994,-873,-29981,-29982,-29982,-29979,-29979,-29979,-29979,-29980,-29978,-29979,-5065,-689,-611,-618,-1052,-1135,-1249,-1152,-917,-917,-854,-797,-1304,-588,-2202,-2325,-2107,-2368,-1775,-1432,-2524,-1521,-29961,-29962,-8957,-10918,-2970,-1547]} 1. d4 {[%emt 0:00:00]} Nf6 {[%emt 0:00:00]} 2. c4 {[%emt 0:00:02]} g6 {[%emt 0:00:01]} 3. Nc3 {[%emt 0:00:02]} Bg7 {[%emt 0:00:01]} 4. e4 {[%emt 0:00:05]} d6 {[%emt 0:00:00]} 5. Be2 {[%emt 0:00:23]} O-O {[%emt 0:00:03]} 6. Nf3 {[%emt 0:00:03]} e5 {[%emt 0:00:03]} 7. O-O {[%emt 0:00:02]} Bg4 {[%emt 0:00:11]} 8. d5 {[%emt 0:00:03]} a5 {[%emt 0:00:03]} 9. h3 {[%emt 0:00:01] E94: King's Indian: Classical: 6 Be2 e5 7 0-0: Various Black 7th moves.} Bxf3 {[%emt 0:00:02]} 10. Bxf3 {[%emt 0:00:01] [#]} Kh8 $146 {[%emt 0:00:01]} ({Predecessor:} 10... Na6 11. Be3 Nd7 12. g3 f5 13. exf5 gxf5 14. Bg2 f4 15. Bd2 Nac5 16. Kh2 Qf6 {1-0 (40) Gelfand,B (2650)-Cori Tello,D (2397) Riga 2021}) 11. Bg5 {[%emt 0:00:43] White is slightly better.} h6 {[%emt 0:00:07]} 12. Be3 {[%emt 0:00:04]} Nbd7 {[%emt 0:00:09]} 13. a3 {[%emt 0:00:45]} Nh7 {[%emt 0:00:10]} 14. Qd2 {[%emt 0:02:32]} f5 $1 {[%emt 0:00:07]} 15. Bxh6 {[%emt 0:01:43]} Qh4 {[%emt 0:03:10]} 16. Bxg7+ {[%emt 0:00:09]} Kxg7 {[%emt 0:00:00]} 17. exf5 {[%emt 0:02:55]} gxf5 {[%emt 0:00:03]} 18. Bd1 {[%emt 0:00:01]} f4 {[%emt 0:02:03][%cal Of4f3] ...f3! is the strong threat.} 19. Bg4 {[%emt 0:00:06]} (19. f3 $14) 19... Ndf6 $11 {[%emt 0:00:33]} 20. f3 {[%emt 0:00:44]} Ng5 {[%emt 0:00:40]} 21. Qf2 {[%emt 0:01:56]} Qh7 {[%emt 0:02:10]} 22. Be6 {[%emt 0:00:37]} Rae8 {[%emt 0:01:13]} 23. c5 {[%emt 0:00:04]} (23. Rfd1 $11) 23... Kh8 {[%emt 0:02:11]} (23... Nxe6 $17 24. dxe6 d5) 24. Bg4 $2 {[%emt 0:01:22]} (24. Rfe1 $14 {keeps the upper hand.}) 24... Nxg4 $19 {[%emt 0:02:44]} 25. fxg4 {[%emt 0:01:40]} (25. hxg4 Rf6 26. Ne4 Nxe4 27. fxe4 Rh6) 25... Rf6 {[%emt 0:00:02] Black is more active.} (25... e4 $1 $17 {[%cal Re4e3] Hoping for ...e3.} 26. Qd4+ Kg8 27. cxd6 cxd6) 26. cxd6 {[%emt 0:00:13]} (26. Rac1 $15) 26... cxd6 $17 {[%emt 0:00:02]} 27. h4 $2 {[%emt 0:00:50] [#]} ({White has to play} 27. Rac1 $15) 27... Rh6 $1 $19 {[%emt 0:00:13][%mdl 1024] Black has strong compensation.} 28. h5 {[%emt 0:00:04]} Qd7 {[%emt 0:00:04]} (28... Rg8 $19 {[%cal Oh6h5] Threatens to win with ...Rxh5!} 29. Qh4 Qe7) 29. Qh4 $17 {[%emt 0:00:43]} Rg8 {[%emt 0:00:04] White must now prevent ...Nh7.} 30. Rac1 {[%emt 0:01:28]} b5 {[%emt 0:00:44]} ({Don't play} 30... Nf7 31. Ne4 $11) 31. Nd1 {[%emt 0:00:17] [#]} (31. Rf2 $17 {was worth a try.}) 31... Ne4 $1 $19 {[%emt 0:00:08]} 32. Nf2 {[%emt 0:00:01]} Nxf2 {[%emt 0:00:10]} 33. Rxf2 {[%emt 0:00:02]} Rxg4 {[%emt 0:00:08]} 34. Rc7 $2 {[%emt 0:00:34][%mdl 8192] [#]} (34. Qh3 $17 Qf5 35. Rfc2 Rxh5 36. Rc8+ Kh7 37. R1c7+ Rg7 38. Rxg7+ (38. Qxf5+ Rxf5 39. Rxg7+ Kxg7 $17) 38... Kxg7 39. Qxf5 Rxf5 40. Rc6) 34... Qf5 $1 {[%emt 0:01:35]} ({And not} 34... Rxh4 35. Rxd7 R4xh5 36. Rc2 $15) (34... Qxc7 35. Qxg4 Rf6 36. Kh2 $11) 35. Qe7 {[%emt 0:00:15]} Rg8 {[%emt 0:00:39]} 36. Qf7 {[%emt 0:00:13]} Rf6 {[%emt 0:00:39]} (36... Qb1+ $19 {is more deadly.} 37. Kh2 b4) 37. Qe7 $2 {[%emt 0:00:11][%mdl 8192]} (37. Qd7 $17) 37... f3 {[%emt 0:00:06]} 38. Rc3 {[%emt 0:00:12]} e4 {[%emt 0:00:14]} ({Weaker is} 38... Rh6 39. Rfxf3 Qb1+ 40. Rf1 Qxb2 41. Rg3 Qd4+ 42. Rf2 Qd1+ 43. Rf1 Qd4+ 44. Rf2 Rxg3 45. Qf8+ Kh7 46. Qf5+ Kg8 47. Qc8+ Kh7 48. Qf5+ Kh8 49. Qf8+ Kh7 50. Qf5+ $11) 39. Re3 {[%emt 0:00:03]} Rxg2+ {[%emt 0:00:19]} 40. Kf1 {[%emt 0:00:15]} Qg5 {[%emt 0:00:24][%csl Gg5][%cal Rg2g1]} 41. Qe8+ {[%emt 0:00:21]} Kg7 {[%emt 0:00:01][%csl Gg5][%cal Rg2g1]} 42. h6+ {[%emt 0:00:06]} Kxh6 {[%emt 0:00:35][%csl Gg5][%cal Rg2g1]} 43. Qh8+ {[%emt 0:00:04]} Kg6 {[%emt 0:00:00][%csl Gg5][%cal Rg2g1]} 44. Qg8+ {[%emt 0:00:12]} Kh5 {[%emt 0:00:19]} (44... Kf5 $142 45. Qxg5+ Rxg5) 45. Qxg5+ {[%emt 0:00:20]} Rxg5 {[%emt 0:00:12][%mdl 4096] Endgame KRR-KRR} 46. Rh2+ {[%emt 0:00:03]} Kg4 {[%emt 0:00:09][%cal Bh5g4,Bg4f5,Bf5e4,Be4e3][%mdl 32] And now ...Kf4 would win.} 47. Rxe4+ {[%emt 0:00:02]} Rf4 {[%emt 0:00:05]} 48. Re6 {[%emt 0:00:22]} Rxd5 {[%emt 0:00:07]} 49. Rg6+ {[%emt 0:00:02]} Kf5 {[%emt 0:00:02]} 50. Rh5+ {[%emt 0:00:01]} Ke4 {[%emt 0:00:07]} 51. Rhh6 {[%emt 0:00:26]} Rd1+ {[%emt 0:00:15]} 52. Kf2 {[%emt 0:00:02]} Rd2+ {[%emt 0:00:00]} 53. Kf1 {[%emt 0:00:04]} Rxb2 {[%emt 0:00:05]} 54. Rxd6 {[%emt 0:00:09]} Ke3 {[%emt 0:00:03] ( -> ...Rb1+)} 55. Rhe6+ {[%emt 0:00:14]} Re4 {[%emt 0:00:03]} 56. Rxe4+ {[%emt 0:00:04]} Kxe4 {[%emt 0:00:00]} 57. Re6+ {[%emt 0:00:25]} Kd3 {[%emt 0:00:26] Weighted Error Value: White=1.15/Black=0.46} 0-1